[Event "CCT Chessable Masters Play-In 2025"]
[Site "Online"]
[Date "2025.02.17"]
[Round "4.78"]
[White "Mekhitarian, Krikor Sevag"]
[Black "Gurevich, Dmitry"]
[Result "1-0"]
[ECO "D35"]
[WhiteElo "2505"]
[BlackElo "2347"]
[PlyCount "109"]
[EventDate "2025.02.13"]
[EventType "swiss"]
[EventCountry "NET"]
[TimeControl "600"]
[WhiteClock "0:00:45"]
[BlackClock "0:00:06"]

1. Nf3 {[%emt 0:00:01]} Nf6 {[%emt 0:00:03]} 2. c4 {[%emt 0:00:01]} e6 {[%emt 0:00:06]} 3. Nc3 {[%emt 0:00:02]} d5 {[%emt 0:00:01]} 4. d4 {[%emt 0:00:00]} Be7 {[%emt 0:00:02]} 5. cxd5 {[%emt 0:00:01]} exd5 {[%emt 0:00:03]} 6. Bf4 {[%emt 0:00:01]} O-O {[%emt 0:00:04]} 7. e3 {[%emt 0:00:01]} c5 {[%emt 0:00:07]} 8. dxc5 {[%emt 0:00:07]} Bxc5 {[%emt 0:00:03]} 9. Bd3 {[%emt 0:00:01]} Nc6 {[%emt 0:00:03]} 10. O-O {[%emt 0:00:01]} d4 {[%emt 0:00:09]} 11. exd4 {[%emt 0:01:24]} Nxd4 {[%emt 0:00:04]} 12. Na4 {[%emt 0:00:01]} Nxf3+ {[%emt 0:00:40]} 13. Qxf3 {[%emt 0:00:02]} Bd6 {[%emt 0:01:17]} 14. Bg5 {[%emt 0:00:11]} h6 {[%emt 0:00:06]} 15. Bxf6 {[%emt 0:00:05]} Qxf6 {[%emt 0:00:02]} 16. Qxf6 {[%emt 0:00:00]} gxf6 {[%emt 0:00:02]} 17. Be4 {[%emt 0:00:09]} Bd7 {[%emt 0:01:20]} 18. Rfd1 {[%emt 0:00:46]} Bxh2+ {[%emt 0:00:04]} 19. Kxh2 {[%emt 0:00:01]} Bxa4 {[%emt 0:00:02]} 20. Rd4 {[%emt 0:00:06]} Bc6 {[%emt 0:00:05]} 21. Bxc6 {[%emt 0:00:01]} bxc6 {[%emt 0:00:02]} 22. Rc1 {[%emt 0:00:01]} Rac8 {[%emt 0:01:08]} 23. Rc5 {[%emt 0:00:40]} Rfd8 {[%emt 0:00:12]} 24. Rxc6 {[%emt 0:00:25]} Rxd4 {[%emt 0:00:08]} 25. Rxc8+ {[%emt 0:00:02]} Kg7 {[%emt 0:00:00]} 26. Rc2 {[%emt 0:00:33]} f5 {[%emt 0:00:10]} 27. Kg3 {[%emt 0:00:04]} Rd3+ {[%emt 0:00:39]} 28. Kf4 {[%emt 0:00:18]} Kg6 {[%emt 0:00:02]} 29. Rc6+ {[%emt 0:00:07]} f6 {[%emt 0:00:03]} 30. Ra6 {[%emt 0:00:01]} Rd2 {[%emt 0:00:02]} 31. b3 {[%emt 0:00:03]} Rxf2+ {[%emt 0:00:07]} 32. Kg3 {[%emt 0:00:01]} Rb2 {[%emt 0:00:22]} 33. Rxa7 {[%emt 0:00:05]} Kg5 {[%emt 0:00:01]} 34. Kf3 {[%emt 0:01:45]} h5 {[%emt 0:00:05]} 35. Ra4 {[%emt 0:00:06]} h4 {[%emt 0:00:06]} 36. Ra8 {[%emt 0:00:11]} Rc2 {[%emt 0:00:20]} 37. Rg8+ {[%emt 0:00:07]} Kh5 {[%emt 0:00:02]} 38. Rh8+ {[%emt 0:00:04]} Kg5 {[%emt 0:00:01]} 39. Rg8+ {[%emt 0:00:14]} Kh5 {[%emt 0:00:01]} 40. a4 {[%emt 0:00:37]} Rc3+ {[%emt 0:00:25]} 41. Kf4 {[%emt 0:00:01]} Rxb3 {[%emt 0:00:02]} 42. Kxf5 {[%emt 0:00:00]} Kh6 {[%emt 0:00:03]} 43. Kxf6 {[%emt 0:00:16]} Kh5 {[%emt 0:00:12]} 44. Kf5 {[%emt 0:00:04]} Kh6 {[%emt 0:00:08]} 45. Rh8+ {[%emt 0:00:02]} Kg7 {[%emt 0:00:04]} 46. Rxh4 {[%emt 0:00:00]} Rb2 {[%emt 0:00:20]} 47. g3 {[%emt 0:00:01]} Rb3 {[%emt 0:00:08]} 48. Rg4+ {[%emt 0:00:12]} Kf7 {[%emt 0:00:02]} 49. Ke5 {[%emt 0:00:02]} Rd3 {[%emt 0:00:07]} 50. Ke4 {[%emt 0:00:04]} Rd1 {[%emt 0:00:02]} 51. Rg5 {[%emt 0:00:01]} Kf6 {[%emt 0:00:11]} 52. Rb5 {[%emt 0:00:01]} Ke6 {[%emt 0:00:07]} 53. a5 {[%emt 0:00:03]} Kd6 {[%emt 0:00:02]} 54. g4 {[%emt 0:00:00]} Kc6 {[%emt 0:00:07]} 55. Rf5 {[%emt 0:00:02]} 1-0

[Event "CCT Chessable Masters Play-In 2025"]
[Site "Online"]
[Date "2025.02.17"]
[Round "4.79"]
[White "Xiao, Tong"]
[Black "Zhukova, Natalia"]
[Result "1-0"]
[ECO "D35"]
[WhiteElo "2491"]
[BlackElo "2306"]
[PlyCount "65"]
[EventDate "2025.02.13"]
[EventType "swiss"]
[EventCountry "NET"]
[TimeControl "600"]
[WhiteClock "0:06:17"]
[BlackClock "0:01:59"]

1. d4 {[%emt 0:00:01]} d5 {[%emt 0:00:03]} 2. c4 {[%emt 0:00:01]} e6 {[%emt 0:00:01]} 3. Nc3 {[%emt 0:00:01]} Nf6 {[%emt 0:00:01]} 4. cxd5 {[%emt 0:00:01]} exd5 {[%emt 0:00:00]} 5. Bg5 {[%emt 0:00:02]} c6 {[%emt 0:00:01]} 6. e3 {[%emt 0:00:01]} Bd6 {[%emt 0:00:02]} 7. Bd3 {[%emt 0:00:03]} O-O {[%emt 0:00:01]} 8. Nge2 {[%emt 0:00:15]} a5 {[%emt 0:00:09]} 9. Qc2 {[%emt 0:00:04]} h6 {[%emt 0:00:02]} 10. Bf4 {[%emt 0:00:02]} Na6 {[%emt 0:00:02]} 11. a3 {[%emt 0:00:01]} Nc7 {[%emt 0:00:03]} 12. O-O {[%emt 0:00:06]} Re8 {[%emt 0:00:04]} 13. Rae1 {[%emt 0:00:02]} Ne6 {[%emt 0:00:12]} 14. Bxd6 {[%emt 0:00:08]} Qxd6 {[%emt 0:00:02]} 15. f3 {[%emt 0:00:11]} b5 {[%emt 0:00:37]} 16. Ng3 {[%emt 0:00:11]} g6 {[%emt 0:01:01]} 17. Bxg6 {[%emt 0:00:17]} fxg6 {[%emt 0:00:02]} 18. Qxg6+ {[%emt 0:00:00]} Ng7 {[%emt 0:00:01]} 19. Nh5 {[%emt 0:00:01]} Nfxh5 {[%emt 0:00:48]} 20. Qxd6 {[%emt 0:00:01]} Re6 {[%emt 0:00:11]} 21. Qd8+ {[%emt 0:00:02]} Kh7 {[%emt 0:00:27]} 22. Qh4 {[%emt 0:00:26]} Rg6 {[%emt 0:00:24]} 23. e4 {[%emt 0:00:21]} Be6 {[%emt 0:00:07]} 24. Kh1 {[%emt 0:00:20]} b4 {[%emt 0:00:13]} 25. Na4 {[%emt 0:00:05]} Rf8 {[%emt 0:00:14]} 26. Nc5 {[%emt 0:00:05]} Rf4 {[%emt 0:00:09]} 27. g4 {[%emt 0:00:16]} dxe4 {[%emt 0:01:22]} 28. Rxe4 {[%emt 0:00:18]} Bd5 {[%emt 0:00:08]} 29. gxh5 {[%emt 0:00:12]} Rxh4 {[%emt 0:00:56]} 30. hxg6+ {[%emt 0:00:02]} Kxg6 {[%emt 0:00:00]} 31. Rxh4 {[%emt 0:00:00]} Nf5 {[%emt 0:00:05]} 32. Rg1+ {[%emt 0:00:07]} Kh7 {[%emt 0:00:33]} 33. Rf4 {[%emt 0:00:00]} 1-0

[Event "CCT Chessable Masters Play-In 2025"]
[Site "Online"]
[Date "2025.02.17"]
[Round "5.1"]
[White "Vachier-Lagrave, Maxime"]
[Black "Duda, Jan-Krzysztof"]
[Result "1/2-1/2"]
[ECO "B33"]
[WhiteElo "2729"]
[BlackElo "2739"]
[PlyCount "157"]
[EventDate "2025.02.13"]
[EventType "swiss"]
[EventCountry "NET"]
[TimeControl "600"]
[WhiteClock "0:00:02"]
[BlackClock "0:00:10"]

1. e4 {[%emt 0:00:01]} c5 {[%emt 0:00:02]} 2. Nf3 {[%emt 0:00:00]} Nc6 {[%emt 0:00:02]} 3. d4 {[%emt 0:00:13]} cxd4 {[%emt 0:00:00]} 4. Nxd4 {[%emt 0:00:00]} Nf6 {[%emt 0:00:01]} 5. Nc3 {[%emt 0:00:01]} e5 {[%emt 0:00:00]} 6. Ndb5 {[%emt 0:00:01]} d6 {[%emt 0:00:00]} 7. Nd5 {[%emt 0:00:01]} Nxd5 {[%emt 0:00:02]} 8. exd5 {[%emt 0:00:00]} Nb8 {[%emt 0:00:00]} 9. a4 {[%emt 0:00:02]} Be7 {[%emt 0:00:05]} 10. Be2 {[%emt 0:00:09]} O-O {[%emt 0:00:03]} 11. Bd2 {[%emt 0:00:03]} f5 {[%emt 0:00:51]} 12. a5 {[%emt 0:00:06]} Nd7 {[%emt 0:00:17]} 13. O-O {[%emt 0:00:02]} a6 {[%emt 0:00:07]} 14. Na3 {[%emt 0:00:01]} Nf6 {[%emt 0:00:04]} 15. Bb4 {[%emt 0:00:16]} f4 {[%emt 0:00:08]} 16. Nc4 {[%emt 0:00:04]} Bf5 {[%emt 0:00:03]} 17. Nxe5 {[%emt 0:00:13]} dxe5 {[%emt 0:00:17]} 18. d6 {[%emt 0:00:02]} Bxd6 {[%emt 0:00:01]} 19. Qxd6 {[%emt 0:00:25]} Qxd6 {[%emt 0:00:05]} 20. Bxd6 {[%emt 0:00:00]} Rfe8 {[%emt 0:00:06]} 21. Rfe1 {[%emt 0:00:01]} Rac8 {[%emt 0:00:23]} 22. c3 {[%emt 0:00:02]} Ne4 {[%emt 0:00:17]} 23. Bb4 {[%emt 0:01:03]} Nc5 {[%emt 0:00:03]} 24. Rad1 {[%emt 0:00:05]} e4 {[%emt 0:00:18]} 25. Bc4+ {[%emt 0:00:41]} Be6 {[%emt 0:00:29]} 26. Rd4 {[%emt 0:00:57]} Bxc4 {[%emt 0:00:24]} 27. Rxc4 {[%emt 0:00:00]} Nd3 {[%emt 0:00:00]} 28. Rxc8 {[%emt 0:00:02]} Rxc8 {[%emt 0:00:00]} 29. Rxe4 {[%emt 0:00:01]} Nxb2 {[%emt 0:00:01]} 30. Kf1 {[%emt 0:00:27]} Nd3 {[%emt 0:00:42]} 31. h4 {[%emt 0:00:15]} Rc6 {[%emt 0:00:57]} 32. Re8+ {[%emt 0:00:49]} Kf7 {[%emt 0:00:01]} 33. Re7+ {[%emt 0:00:00]} Kf6 {[%emt 0:00:00]} 34. Rxb7 {[%emt 0:00:01]} Re6 {[%emt 0:00:01]} 35. Rb6 {[%emt 0:00:06]} Kf5 {[%emt 0:00:01]} 36. Rxe6 {[%emt 0:00:45]} Kxe6 {[%emt 0:00:00]} 37. Ke2 {[%emt 0:00:01]} Ne5 {[%emt 0:00:01]} 38. Bc5 {[%emt 0:00:15]} g6 {[%emt 0:00:08]} 39. Bb6 {[%emt 0:00:08]} Kd5 {[%emt 0:00:33]} 40. Bc7 {[%emt 0:00:05]} Nc4 {[%emt 0:00:01]} 41. Kf3 {[%emt 0:00:35]} Kc6 {[%emt 0:00:02]} 42. Bxf4 {[%emt 0:00:00]} Nxa5 {[%emt 0:00:01]} 43. Kg4 {[%emt 0:00:01]} Nb3 {[%emt 0:00:37]} 44. c4 {[%emt 0:00:02]} a5 {[%emt 0:00:06]} 45. Be5 {[%emt 0:00:01]} a4 {[%emt 0:00:36]} 46. Bb2 {[%emt 0:00:01]} Nd2 {[%emt 0:00:06]} 47. Kg5 {[%emt 0:00:02]} Nxc4 {[%emt 0:00:01]} 48. Ba1 {[%emt 0:00:17]} Kd5 {[%emt 0:00:43]} 49. Kh6 {[%emt 0:00:01]} Ke6 {[%emt 0:00:01]} 50. Kxh7 {[%emt 0:00:06]} Kf5 {[%emt 0:00:00]} 51. f3 {[%emt 0:00:09]} Ne5 {[%emt 0:00:17]} 52. Bb2 {[%emt 0:00:11]} Nd3 {[%emt 0:00:06]} 53. Bc3 {[%emt 0:00:12]} Ne5 {[%emt 0:00:05]} 54. Bb4 {[%emt 0:00:05]} Nd3 {[%emt 0:00:02]} 55. Bd6 {[%emt 0:00:03]} Ne5 {[%emt 0:00:03]} 56. Kg7 {[%emt 0:00:05]} Ke6 {[%emt 0:00:02]} 57. Ba3 {[%emt 0:00:02]} Kf5 {[%emt 0:00:00]} 58. Bc1 {[%emt 0:00:05]} Ke6 {[%emt 0:00:06]} 59. Bb2 {[%emt 0:00:07]} Kf5 {[%emt 0:00:01]} 60. Ba3 {[%emt 0:00:03]} Ke6 {[%emt 0:00:02]} 61. f4 {[%emt 0:00:01]} Nd3 {[%emt 0:00:02]} 62. g3 {[%emt 0:00:05]} Kf5 {[%emt 0:00:01]} 63. Kf7 {[%emt 0:00:00]} Nf2 {[%emt 0:00:02]} 64. Bb4 {[%emt 0:00:05]} Ng4 {[%emt 0:00:00]} 65. Ba3 {[%emt 0:00:01]} Ne3 {[%emt 0:00:01]} 66. Bc5 {[%emt 0:00:01]} Ng4 {[%emt 0:00:00]} 67. Ba3 {[%emt 0:00:07]} Nf6 {[%emt 0:00:01]} 68. Bb2 {[%emt 0:00:01]} Nh5 {[%emt 0:00:01]} 69. g4+ {[%emt 0:00:01]} Kxg4 {[%emt 0:00:01]} 70. Kxg6 {[%emt 0:00:00]} Nxf4+ {[%emt 0:00:00]} 71. Kf6 {[%emt 0:00:00]} Nd3 {[%emt 0:00:01]} 72. Ba3 {[%emt 0:00:01]} Kxh4 {[%emt 0:00:00]} 73. Ke6 {[%emt 0:00:00]} Nf4+ {[%emt 0:00:05]} 74. Kd6 {[%emt 0:00:01]} Kg4 {[%emt 0:00:01]} 75. Kc5 {[%emt 0:00:01]} Ne6+ {[%emt 0:00:01]} 76. Kb5 {[%emt 0:00:00]} Nc5 {[%emt 0:00:01]} 77. Kxc5 {[%emt 0:00:00]} Kf4 {[%emt 0:00:01]} 78. Kb4 {[%emt 0:00:00]} Ke4 {[%emt 0:00:00]} 79. Kxa4 {[%emt 0:00:01]} 1/2-1/2

[Event "CCT Chessable Masters Play-In 2025"]
[Site "Online"]
[Date "2025.02.17"]
[Round "5.3"]
[White "Wei, Yi"]
[Black "Anton Guijarro, David"]
[Result "1-0"]
[ECO "B13"]
[WhiteElo "2755"]
[BlackElo "2668"]
[PlyCount "97"]
[EventDate "2025.02.13"]
[EventType "swiss"]
[EventCountry "NET"]
[TimeControl "600"]
[WhiteClock "0:01:34"]
[BlackClock "0:00:04"]

1. e4 {[%emt 0:00:02]} c6 {[%emt 0:00:01]} 2. d4 {[%emt 0:00:14]} d5 {[%emt 0:00:01]} 3. exd5 {[%emt 0:00:08]} cxd5 {[%emt 0:00:00]} 4. Nf3 {[%emt 0:00:04]} Nc6 {[%emt 0:00:02]} 5. c3 {[%emt 0:00:06]} Qc7 {[%emt 0:00:12]} 6. h3 {[%emt 0:00:14]} Bf5 {[%emt 0:00:13]} 7. g4 {[%emt 0:00:36]} Bg6 {[%emt 0:00:15]} 8. Nbd2 {[%emt 0:00:21]} e6 {[%emt 0:00:25]} 9. Nh4 {[%emt 0:00:05]} Bd6 {[%emt 0:00:14]} 10. Nxg6 {[%emt 0:00:11]} hxg6 {[%emt 0:00:00]} 11. Bg2 {[%emt 0:00:04]} Nf6 {[%emt 0:00:29]} 12. Nf3 {[%emt 0:00:18]} Ne4 {[%emt 0:00:17]} 13. Ng5 {[%emt 0:00:11]} Nxg5 {[%emt 0:00:02]} 14. Bxg5 {[%emt 0:00:01]} Bf4 {[%emt 0:00:02]} 15. Bxf4 {[%emt 0:00:01]} Qxf4 {[%emt 0:00:01]} 16. Qd2 {[%emt 0:00:06]} Qxd2+ {[%emt 0:01:19]} 17. Kxd2 {[%emt 0:00:00]} g5 {[%emt 0:00:00]} 18. Raf1 {[%emt 0:00:06]} Ke7 {[%emt 0:00:08]} 19. f4 {[%emt 0:00:40]} gxf4 {[%emt 0:00:03]} 20. Rxf4 {[%emt 0:00:03]} g5 {[%emt 0:00:07]} 21. Rf2 {[%emt 0:00:01]} Rac8 {[%emt 0:00:21]} 22. Re1 {[%emt 0:00:06]} Rcd8 {[%emt 0:00:12]} 23. Rf5 {[%emt 0:00:02]} Rh6 {[%emt 0:02:04]} 24. Re3 {[%emt 0:00:41]} Rf6 {[%emt 0:00:43]} 25. Rxg5 {[%emt 0:00:25]} Rf2+ {[%emt 0:00:22]} 26. Re2 {[%emt 0:00:01]} Rxe2+ {[%emt 0:00:00]} 27. Kxe2 {[%emt 0:00:01]} Rh8 {[%emt 0:00:00]} 28. Ke3 {[%emt 0:00:14]} Kf6 {[%emt 0:00:03]} 29. Kf4 {[%emt 0:00:02]} Ne7 {[%emt 0:00:22]} 30. Rh5 {[%emt 0:00:03]} Ng6+ {[%emt 0:00:14]} 31. Kg3 {[%emt 0:00:05]} Rb8 {[%emt 0:00:01]} 32. h4 {[%emt 0:00:54]} Kg7 {[%emt 0:00:01]} 33. Bf1 {[%emt 0:00:03]} b5 {[%emt 0:00:02]} 34. Bd3 {[%emt 0:00:14]} Ne7 {[%emt 0:00:16]} 35. g5 {[%emt 0:00:37]} b4 {[%emt 0:00:02]} 36. Rh7+ {[%emt 0:00:03]} Kg8 {[%emt 0:00:01]} 37. g6 {[%emt 0:00:14]} Nxg6 {[%emt 0:00:04]} 38. Bxg6 {[%emt 0:00:01]} fxg6 {[%emt 0:00:00]} 39. Rxa7 {[%emt 0:00:01]} bxc3 {[%emt 0:00:01]} 40. bxc3 {[%emt 0:00:00]} Rc8 {[%emt 0:00:03]} 41. Kf4 {[%emt 0:00:21]} Rxc3 {[%emt 0:00:01]} 42. a4 {[%emt 0:00:00]} Rd3 {[%emt 0:00:10]} 43. Ke5 {[%emt 0:00:02]} Re3+ {[%emt 0:00:00]} 44. Kf6 {[%emt 0:00:14]} Re4 {[%emt 0:00:02]} 45. a5 {[%emt 0:00:04]} Rxd4 {[%emt 0:00:02]} 46. a6 {[%emt 0:00:05]} Ra4 {[%emt 0:00:09]} 47. Rg7+ {[%emt 0:00:01]} Kh8 {[%emt 0:00:14]} 48. a7 {[%emt 0:00:05]} Rf4+ {[%emt 0:00:35]} 49. Kg5 {[%emt 0:00:15]} 1-0

[Event "CCT Chessable Masters Play-In 2025"]
[Site "Online"]
[Date "2025.02.17"]
[Round "5.4"]
[White "Nihal Sarin"]
[Black "Gledura, Benjamin"]
[Result "1-0"]
[ECO "B11"]
[WhiteElo "2687"]
[BlackElo "2659"]
[PlyCount "97"]
[EventDate "2025.02.13"]
[EventType "swiss"]
[EventCountry "NET"]
[TimeControl "600"]
[WhiteClock "0:04:59"]
[BlackClock "0:03:03"]

1. e4 {[%emt 0:00:01]} c6 {[%emt 0:00:02]} 2. Nc3 {[%emt 0:00:13]} d5 {[%emt 0:00:01]} 3. Qe2 {[%emt 0:00:00]} d4 {[%emt 0:00:24]} 4. Nd1 {[%emt 0:00:01]} e5 {[%emt 0:00:03]} 5. d3 {[%emt 0:00:03]} c5 {[%emt 0:00:05]} 6. g3 {[%emt 0:00:03]} Nc6 {[%emt 0:00:01]} 7. f4 {[%emt 0:00:01]} Bd6 {[%emt 0:00:04]} 8. Nf2 {[%emt 0:00:10]} Nge7 {[%emt 0:00:05]} 9. Bh3 {[%emt 0:00:06]} Bxh3 {[%emt 0:00:05]} 10. Ngxh3 {[%emt 0:00:00]} Qd7 {[%emt 0:00:01]} 11. Bd2 {[%emt 0:00:12]} h5 {[%emt 0:00:10]} 12. Ng5 {[%emt 0:00:04]} f6 {[%emt 0:00:04]} 13. Nf3 {[%emt 0:00:01]} O-O-O {[%emt 0:00:17]} 14. f5 {[%emt 0:00:02]} Kb8 {[%emt 0:00:07]} 15. h3 {[%emt 0:00:29]} Bc7 {[%emt 0:00:09]} 16. Rg1 {[%emt 0:00:14]} Ba5 {[%emt 0:00:05]} 17. c4 {[%emt 0:00:02]} Bxd2+ {[%emt 0:00:34]} 18. Qxd2 {[%emt 0:00:10]} g6 {[%emt 0:00:04]} 19. g4 {[%emt 0:00:02]} hxg4 {[%emt 0:00:07]} 20. hxg4 {[%emt 0:00:00]} g5 {[%emt 0:00:27]} 21. Ke2 {[%emt 0:00:03]} Rdg8 {[%emt 0:00:09]} 22. Rh1 {[%emt 0:00:02]} Nd8 {[%emt 0:00:02]} 23. Rxh8 {[%emt 0:00:28]} Rxh8 {[%emt 0:00:00]} 24. Rh1 {[%emt 0:00:06]} Rxh1 {[%emt 0:00:08]} 25. Nxh1 {[%emt 0:00:00]} Nf7 {[%emt 0:00:01]} 26. Ng3 {[%emt 0:00:04]} Qa4 {[%emt 0:00:12]} 27. b3 {[%emt 0:00:09]} Qa3 {[%emt 0:00:04]} 28. Nh5 {[%emt 0:00:01]} Ng8 {[%emt 0:00:02]} 29. Kf2 {[%emt 0:00:07]} a6 {[%emt 0:00:03]} 30. Kg3 {[%emt 0:00:03]} Ka7 {[%emt 0:00:04]} 31. Ng7 {[%emt 0:00:12]} Ne7 {[%emt 0:00:02]} 32. Ne8 {[%emt 0:00:09]} Ng8 {[%emt 0:00:03]} 33. Ng1 {[%emt 0:00:36]} Kb8 {[%emt 0:00:14]} 34. Ne2 {[%emt 0:00:15]} Ka7 {[%emt 0:00:05]} 35. Nc1 {[%emt 0:00:03]} Kb8 {[%emt 0:00:05]} 36. Ne2 {[%emt 0:00:09]} Ka7 {[%emt 0:00:03]} 37. Ng1 {[%emt 0:00:03]} Kb8 {[%emt 0:00:01]} 38. Nh3 {[%emt 0:00:02]} Ka7 {[%emt 0:00:05]} 39. Nf2 {[%emt 0:00:12]} Kb8 {[%emt 0:00:02]} 40. Kg2 {[%emt 0:00:02]} Ka7 {[%emt 0:00:02]} 41. Qc2 {[%emt 0:00:01]} Kb8 {[%emt 0:00:09]} 42. Qb1 {[%emt 0:00:01]} Ka7 {[%emt 0:00:12]} 43. Qh1 {[%emt 0:00:05]} Qxa2 {[%emt 0:01:41]} 44. Qh7 {[%emt 0:00:03]} Nfh6 {[%emt 0:00:05]} 45. Nd6 {[%emt 0:00:05]} Qxb3 {[%emt 0:00:01]} 46. Qc7 {[%emt 0:00:00]} Qb4 {[%emt 0:00:19]} 47. Nc8+ {[%emt 0:00:05]} Ka8 {[%emt 0:00:02]} 48. Nb6+ {[%emt 0:00:01]} Ka7 {[%emt 0:00:06]} 49. Nd7 {[%emt 0:00:00]} 1-0

[Event "CCT Chessable Masters Play-In 2025"]
[Site "Online"]
[Date "2025.02.17"]
[Round "5.5"]
[White "Giri, Anish"]
[Black "Vokhidov, Shamsiddin"]
[Result "0-1"]
[ECO "D41"]
[WhiteElo "2728"]
[BlackElo "2670"]
[PlyCount "126"]
[EventDate "2025.02.13"]
[EventType "swiss"]
[EventCountry "NET"]
[TimeControl "600"]
[WhiteClock "0:00:26"]
[BlackClock "0:00:30"]

1. c4 {[%emt 0:00:01]} Nf6 {[%emt 0:00:02]} 2. Nf3 {[%emt 0:00:01]} e6 {[%emt 0:00:01]} 3. g3 {[%emt 0:00:01]} d5 {[%emt 0:00:02]} 4. Bg2 {[%emt 0:00:00]} Be7 {[%emt 0:00:01]} 5. O-O {[%emt 0:00:01]} O-O {[%emt 0:00:00]} 6. b3 {[%emt 0:00:01]} c5 {[%emt 0:00:01]} 7. cxd5 {[%emt 0:00:00]} Nxd5 {[%emt 0:00:02]} 8. Nc3 {[%emt 0:00:01]} Nc6 {[%emt 0:00:02]} 9. Nxd5 {[%emt 0:00:01]} exd5 {[%emt 0:00:15]} 10. d4 {[%emt 0:00:00]} Bf6 {[%emt 0:00:02]} 11. Bb2 {[%emt 0:00:03]} Re8 {[%emt 0:00:15]} 12. e3 {[%emt 0:00:01]} Bg4 {[%emt 0:00:08]} 13. Qd2 {[%emt 0:00:01]} cxd4 {[%emt 0:00:29]} 14. Nxd4 {[%emt 0:00:10]} Bxd4 {[%emt 0:00:14]} 15. Bxd4 {[%emt 0:00:04]} Qd7 {[%emt 0:00:01]} 16. Rfe1 {[%emt 0:00:19]} Bh3 {[%emt 0:00:05]} 17. Bh1 {[%emt 0:00:07]} Bf5 {[%emt 0:00:02]} 18. Bb2 {[%emt 0:00:45]} Rad8 {[%emt 0:00:03]} 19. Rad1 {[%emt 0:00:03]} Be4 {[%emt 0:00:13]} 20. f3 {[%emt 0:00:57]} Bg6 {[%emt 0:00:02]} 21. e4 {[%emt 0:00:01]} d4 {[%emt 0:00:02]} 22. f4 {[%emt 0:00:03]} f6 {[%emt 0:00:02]} 23. Qf2 {[%emt 0:00:03]} Re7 {[%emt 0:00:30]} 24. Rd2 {[%emt 0:00:14]} Qe8 {[%emt 0:00:17]} 25. Bxd4 {[%emt 0:00:21]} Nxd4 {[%emt 0:01:19]} 26. Rxd4 {[%emt 0:00:01]} Rxd4 {[%emt 0:00:01]} 27. Qxd4 {[%emt 0:00:01]} b6 {[%emt 0:00:01]} 28. e5 {[%emt 0:00:07]} fxe5 {[%emt 0:00:02]} 29. Rxe5 {[%emt 0:00:31]} Rxe5 {[%emt 0:00:02]} 30. fxe5 {[%emt 0:00:03]} Bf7 {[%emt 0:00:08]} 31. Bd5 {[%emt 0:00:06]} g6 {[%emt 0:00:12]} 32. Kf2 {[%emt 0:00:25]} Qe7 {[%emt 0:00:15]} 33. Qc4 {[%emt 0:00:24]} Bxd5 {[%emt 0:00:14]} 34. Qxd5+ {[%emt 0:00:00]} Kg7 {[%emt 0:00:01]} 35. Qd4 {[%emt 0:00:32]} Kf7 {[%emt 0:00:04]} 36. Ke3 {[%emt 0:00:06]} Ke6 {[%emt 0:00:10]} 37. h4 {[%emt 0:00:36]} Qf8 {[%emt 0:00:56]} 38. b4 {[%emt 0:00:16]} h5 {[%emt 0:00:04]} 39. a4 {[%emt 0:00:30]} Qe7 {[%emt 0:00:22]} 40. Qe4 {[%emt 0:00:34]} Qg7 {[%emt 0:00:01]} 41. Qc4+ {[%emt 0:00:13]} Kf5 {[%emt 0:00:03]} 42. g4+ {[%emt 0:00:09]} hxg4 {[%emt 0:00:01]} 43. Qe4+ {[%emt 0:00:07]} Ke6 {[%emt 0:00:01]} 44. Qxg4+ {[%emt 0:00:02]} Kd5 {[%emt 0:00:12]} 45. Qd4+ {[%emt 0:00:05]} Ke6 {[%emt 0:00:01]} 46. Qc4+ {[%emt 0:00:10]} Kf5 {[%emt 0:00:01]} 47. Qf4+ {[%emt 0:00:24]} Ke6 {[%emt 0:00:01]} 48. Qg4+ {[%emt 0:00:04]} Kd5 {[%emt 0:00:01]} 49. Kd3 {[%emt 0:00:06]} Qxe5 {[%emt 0:00:26]} 50. Qg2+ {[%emt 0:00:01]} Kd6 {[%emt 0:00:07]} 51. Qxg6+ {[%emt 0:00:01]} Kc7 {[%emt 0:00:04]} 52. Qf7+ {[%emt 0:00:00]} Kd6 {[%emt 0:00:17]} 53. Qg6+ {[%emt 0:00:04]} Kc7 {[%emt 0:00:02]} 54. Qh7+ {[%emt 0:00:02]} Kd6 {[%emt 0:00:05]} 55. Qe4 {[%emt 0:00:00]} Qg3+ {[%emt 0:00:10]} 56. Kc4 {[%emt 0:00:01]} Qg8+ {[%emt 0:00:31]} 57. Kb5 {[%emt 0:00:01]} Qc8 {[%emt 0:00:26]} 58. Qd4+ {[%emt 0:00:01]} Ke7 {[%emt 0:00:03]} 59. Qe5+ {[%emt 0:00:06]} Kf7 {[%emt 0:00:01]} 60. Qd5+ {[%emt 0:00:02]} Kg7 {[%emt 0:00:05]} 61. h5 {[%emt 0:00:08]} Qe8+ {[%emt 0:00:08]} 62. Qc6 {[%emt 0:00:08]} Qe2+ {[%emt 0:00:01]} 63. Qc4 {[%emt 0:00:08]} a6+ {[%emt 0:00:00]} 0-1